bitfinex/quotes_ETHUSD_20240722
["timestamp","ask_amount","ask_price","bid_price","bid_amount"]
[1721626964019,2.85706,3500.1,3498.8,5.02423703]
[1721626964362,6.85922168,3500.8,3499.4,2.85763]
[1721626964534,6.85922168,3500.8,3499.2,2.3]
[1721626965062,2.85631,3501.1,3499.8,2.85725]
[1721626965063,6.85922168,3501.1,3499.8,2.85725]
[1721626965264,2.85616,3501.2,3499.9,3.428659]
[1721626965433,2.85616,3501.2,3500.0,0.55]
[1721626966121,2.85616,3501.2,3500.1,0.08463506]
[1721626966316,2.31,3501.3,3500.2,0.55]
[1721626966539,2.31,3501.3,3500.3,0.40417651]
[1721626967017,2.31,3501.3,3500.4,0.55]
[1721626967215,2.31,3501.3,3500.4,0.63451908]
[1721626968454,6.85922168,3501.4,3500.4,0.63451908]
[1721626969457,6.85922168,3501.4,3500.6,2.85665]
[1721626969774,3.0,3501.7,3500.7,0.98345081]
[1721626969775,9.85922168,3501.7,3500.7,0.98345081]
[1721626969935,6.85922168,3501.7,3500.7,0.98345081]
[1721626970138,3.0,3501.6,3500.7,0.98345081]
[1721626970336,3.0,3501.6,3500.7,0.89911691]
[1721626970635,3.0,3501.6,3500.8,0.08422601]
[1721626970864,3.0,3501.6,3500.9,0.55]
[1721626971192,6.85922168,3501.7,3500.9,3.40634]
[1721626971477,6.85922168,3501.7,3500.9,0.55]
[1721626971954,6.85922168,3501.7,3501.0,0.08414872]
[1721626972379,2.85598,3501.5,3500.3,0.40417651]
[1721626972537,2.85598,3501.5,3501.1,0.08408701]
[1721626972727,2.85598,3501.5,3500.4,1.17611165]
[1721626972926,12.20143385,3501.7,3501.2,0.08404837]
[1721626973126,12.20143385,3501.7,3500.5,2.85667]
[1721626973127,9.34564385,3501.7,3500.5,2.85667]
[1721626973325,6.85922168,3501.7,3501.3,0.08401435]
[1721626973529,6.85922168,3501.7,3500.6,1.27938482]
[1721626973530,6.85922168,3501.7,3500.6,0.72938482]
[1721626973764,9.71499168,3501.7,3501.4,0.08397513]
[1721626974071,2.85583,3501.6,3500.4,1.17611165]
[1721626974568,2.85583,3501.6,3500.5,0.08432294]
[1721626974752,2.8556,3501.9,3500.6,3.85878011]
[1721626974941,5.85567,3501.8,3500.6,3.9430644]
[1721626975276,15.0,3502.0,3500.7,2.85656]
[1721626975493,15.0,3502.0,3500.9,2.85634]
[1721626975876,2.85566,3501.9,3501.0,0.63412681]
[1721626976090,2.85575,3501.7,3501.0,0.63412681]
[1721626976294,4.641246,3501.8,3501.0,0.63412681]
[1721626976652,15.0,3502.0,3501.0,0.55]
[1721626976805,15.0,3502.0,3500.9,0.55]
[1721626976957,15.0,3502.0,3501.1,0.08408817]
[1721626977163,15.0,3502.0,3501.2,0.55]
[1721626977362,15.0,3502.0,3501.2,0.63404952]
[1721626977814,15.0,3502.0,3501.2,0.98309247]
[1721626979785,15.0,3502.0,3501.2,0.63404952]
[1721626980427,15.0,3502.0,3501.3,2.36871644]
[1721626980718,15.0,3502.0,3501.4,0.55]
[1721626980862,15.0,3502.0,3501.4,0.63391747]
[1721626983530,15.0,3502.0,3501.4,0.55]
[1721626983673,15.0,3502.0,3501.2,0.55]
[1721626983879,15.0,3502.0,3501.5,0.08386846]
[1721626984183,15.0,3502.0,3501.6,0.08382983]
[1721626984379,15.0,3502.0,3501.3,2.85606]
[1721626984604,15.0,3502.0,3501.7,0.0837912]
[1721626984773,15.0,3502.0,3501.4,3.40597]
[1721626984996,15.0,3502.0,3501.8,0.08375257]
[1721626985191,15.0,3502.0,3501.6,2.85582]
[1721626985414,15.0,3502.0,3501.9,0.08371395]
[1721626985610,15.0,3502.0,3501.9,0.55]
[1721626985890,15.0,3502.0,3501.9,3.40559]
[1721626986121,15.0,3502.0,3501.9,4.280774]
[1721626986300,14.40439184,3502.0,3501.9,4.36448795]
[1721626987036,14.40439184,3502.0,3501.9,7.22007795]
[1721626987755,13.34561952,3502.0,3501.9,7.22007795]
[1721626988793,13.34561952,3502.0,3501.9,9.62107795]
[1721626988996,13.34561952,3502.0,3501.9,12.62107795]
[1721626989939,13.34561952,3502.0,3501.9,16.46916332]
[1721626990300,13.34561952,3502.0,3501.9,18.8590582]
[1721626990743,13.34561952,3502.0,3501.9,15.01097795]
[1721626992602,13.34561952,3502.0,3501.9,12.60997795]
[1721626995401,13.34561952,3502.0,3501.9,3.95889795]
[1721626995600,13.34561952,3502.0,3501.9,0.08371395]
[1721626995862,13.34561952,3502.0,3501.3,2.85603]
[1721626995997,13.34561952,3502.0,3501.9,0.08084246]
[1721626996313,13.34561952,3502.0,3501.4,2.85599]
[1721626996704,13.34561952,3502.0,3501.5,0.08099697]
[1721626997204,16.20112952,3502.0,3501.5,0.08099697]
[1721626997549,16.20112952,3502.0,3500.7,2.85656]
[1721626997550,2.85561,3501.9,3500.7,2.85656]
[1721626997840,2.85568,3501.8,3501.6,0.07836816]
[1721626998049,13.34561952,3502.0,3500.1,2.89]
[1721626998050,2.85584,3501.6,3500.1,2.89]
[1721626998335,2.85601,3501.4,3500.2,1.019]
[1721626998632,2.85584,3501.6,3500.2,2.93586921]
[1721626998832,2.85592,3501.5,3500.3,2.85687]
[1721626999035,5.85562,3501.9,3500.5,2.85671]
[1721626999238,5.85562,3501.9,3500.6,0.05712674]
[1721626999239,3.0,3501.9,3500.6,0.05712674]
[1721626999541,20.2048412,3502.0,3500.9,2.8564]
[1721626999747,20.2048412,3502.0,3501.0,0.05711628]
[1721626999748,13.34561952,3502.0,3501.0,0.05711628]
[1721626999897,13.34561952,3502.0,3501.1,0.05711512]
[1721627000104,13.34561952,3502.0,3501.2,0.55]
[1721627000342,13.34561952,3502.0,3501.3,2.85606]
[1721627000542,13.34561952,3502.0,3501.4,0.55]
[1721627000745,13.34561952,3502.0,3501.4,0.62848692]
[1721627001305,2.85559,3501.9,3501.4,0.62848692]
[1721627001506,13.34561952,3502.0,3500.7,0.29138467]
[1721627001507,2.3015,3501.7,3500.7,3.29138467]
[1721627001743,2.3015,3501.7,3500.8,0.55]
[1721627001937,2.3015,3501.7,3500.9,0.66979547]
[1721627002102,2.3015,3501.7,3501.0,0.62869102]
[1721627003454,5.15726,3501.7,3501.0,0.62869102]
[1721627004246,2.3015,3501.7,3501.0,0.62869102]
[1721627004906,16.20113952,3502.0,3501.0,0.62869102]
[1721627005109,13.34561952,3502.0,3501.0,1.37332514]
[1721627005369,2.85568,3501.8,3501.0,1.37332514]
[1721627005942,16.20112952,3502.0,3501.0,1.37332514]
[1721627006864,2.8556,3501.9,3501.0,1.37332514]
[1721627007163,2.85571,3501.8,3501.0,1.37332514]
[1721627007348,16.20112952,3502.0,3501.0,1.37332514]
[1721627007349,2.85584,3501.6,3501.0,0.62869102]
[1721627007548,2.85559,3501.9,3501.0,0.62869102]
[1721627008071,2.8557,3501.8,3501.0,0.62869102]
[1721627008425,13.34561952,3502.0,3501.0,0.62869102]
[1721627008426,2.85583,3501.7,3501.0,0.62869102]
[1721627008668,2.85583,3501.7,3501.0,0.07869102]
[1721627009129,2.85583,3501.7,3500.3,2.85688]
[1721627009466,2.85583,3501.7,3500.4,0.62892869]
[1721627009770,2.856,3501.4,3500.4,0.62892869]
[1721627009938,2.85583,3501.6,3500.5,0.4409833]
[1721627010137,2.85593,3501.5,3500.6,0.55]
[1721627010343,1.86779195,3501.8,3500.6,0.07885138]
[1721627010344,2.3785,3501.4,3500.6,0.07885138]
[1721627010642,2.85652,3500.8,3499.8,1.48950433]
[1721627010856,2.85652,3500.8,3499.6,0.8924844]
[1721627010857,2.85643,3500.9,3499.6,1.48950433]
[1721627011170,2.85626,3501.1,3499.7,3.15524271]
[1721627011371,2.85634,3501.0,3499.8,3.85056511]
[1721627011681,2.85625,3501.1,3499.9,3.85045359]
[1721627011874,6.85922168,3501.2,3499.9,0.07913814]
[1721627012036,2.85625,3501.1,3500.0,0.99323124]
[1721627012371,2.85634,3501.0,3500.1,0.90162454]
[1721627012539,2.85634,3501.0,3500.0,1.07238661]
[1721627012540,2.85634,3501.0,3500.0,0.07915537]
[1721627012739,2.85634,3501.0,3499.8,4.34722766]
[1721627012740,6.85922168,3501.2,3500.1,2.93610671]
[1721627012958,6.85922168,3501.2,3500.3,5.25513]
[1721627013161,6.85922168,3501.2,3500.4,1.54308424]
[1721627013485,6.85922168,3501.2,3500.4,0.62900073]
[1721627013689,6.85922168,3501.2,3500.5,0.27156668]
[1721627013983,2.856,3501.4,3500.6,0.55]
[1721627014229,9.71508168,3501.6,3500.6,0.62892342]
[1721627014491,3.0,3501.5,3500.6,0.62892342]
[1721627014859,2.85601,3501.4,3499.9,2.438]
[1721627015058,2.85628,3501.1,3500.0,2.02544433]
[1721627015257,2.85611,3501.3,3500.0,3.96851965]
[1721627015862,3.0,3501.5,3500.0,1.11138965]
[1721627016059,3.0,3501.5,3500.4,2.8568]
[1721627016294,6.85922168,3501.6,3500.7,2.85656]
[1721627016550,6.85922168,3501.6,3500.5,3.40673]
[1721627016551,6.85922168,3501.6,3500.8,4.032729]
[1721627016842,6.85922168,3501.6,3500.8,4.11157511]
[1721627017346,6.85922168,3501.6,3500.9,2.8564]
[1721627017509,6.85922168,3501.6,3501.0,0.55]
[1721627017712,13.34561952,3502.0,3501.0,0.62876882]
[1721627018030,18.50719964,3502.0,3501.0,0.62876882]
[1721627019196,2.85575,3501.8,3501.0,0.55]
[1721627019434,2.85575,3501.8,3501.1,0.07873018]
[1721627019617,2.85584,3501.6,3500.7,0.55]
[1721627019931,15.65162964,3502.0,3501.2,0.07869154]
[1721627019932,2.85571,3501.8,3501.2,0.07869154]
[1721627020128,1.61068788,3501.8,3500.8,2.85647]
[1721627020335,16.20114952,3502.0,3500.9,0.55]
[1721627020541,2.85559,3501.9,3500.9,0.55]
[1721627020746,2.85559,3501.9,3500.6,2.85664]
[1721627020747,13.34561952,3502.0,3500.7,0.55]
[1721627020912,13.34561952,3502.0,3501.0,0.07876882]
[1721627021106,13.34561952,3502.0,3501.1,0.55]
[1721627021447,2.85561,3501.9,3501.1,0.55]
[1721627021610,2.85561,3501.9,3501.2,0.07869154]
[1721627021810,2.85561,3501.9,3500.8,3.40647]
[1721627022007,2.85584,3501.6,3501.3,0.0786529]
[1721627022212,3.0,3501.8,3500.8,0.55]
[1721627022436,3.0,3501.8,3501.4,0.07861426]
[1721627022437,2.85583,3501.6,3501.4,0.07861426]
[1721627022646,2.85583,3501.6,3500.6,0.55]
[1721627022948,2.85583,3501.6,3501.5,0.0785376]
[1721627023158,5.85568,3501.8,3500.4,0.55]
[1721627023159,2.85592,3501.5,3500.4,0.55]
[1721627023362,2.2939,3501.7,3500.0,0.48223428]
[1721627023657,2.85622,3501.2,3500.1,0.66422458]
[1721627023843,4.21402995,3501.7,3500.1,0.74330326]
[1721627023844,2.85625,3501.1,3500.1,0.74330326]
[1721627024042,0.285625,3501.1,3500.1,0.74330326]
[1721627024262,2.85633,3501.0,3500.1,0.07907868]
[1721627024971,2.85617,3501.2,3500.1,0.07907868]
[1721627025634,2.85617,3501.2,3500.2,0.55]
[1721627025832,2.85617,3501.2,3500.2,0.62904001]
[1721627026249,2.856,3501.4,3500.2,0.62904001]
[1721627026250,2.85625,3501.1,3500.2,0.62904001]
[1721627026648,2.856,3501.4,3500.2,0.62904001]
[1721627026649,2.85611,3501.3,3500.3,0.39683943]
[1721627026952,2.856,3501.4,3500.4,0.55]
[1721627026953,2.85618,3501.2,3500.4,0.55]
[1721627027156,2.85625,3501.1,3500.4,0.55]
[1721627027356,2.85633,3501.0,3500.5,0.07892404]
[1721627027722,2.85643,3500.9,3500.5,0.07892404]
[1721627028069,2.85649,3500.8,3499.7,0.29787271]
[1721627028270,3.002776,3500.9,3499.7,0.29787271]
[1721627028271,2.85675,3500.5,3499.7,0.29787271]
[1721627028950,2.85657,3500.7,3499.7,0.29787271]
[1721627029163,2.4315,3500.9,3499.7,0.29787271]
[1721627029333,2.85649,3500.8,3499.4,5.74761]
[1721627029858,2.85649,3500.8,3499.5,0.55]
[1721627030767,2.85675,3500.5,3499.5,0.55]
[1721627030950,2.8566,3500.7,3499.5,0.55]
[1721627031276,2.85666,3500.6,3499.5,0.55]
[1721627031579,2.85666,3500.6,3499.6,0.860061]
[1721627031723,2.85649,3500.8,3499.7,0.55]
[1721627031919,2.8566,3500.7,3499.7,0.55]
[1721627032124,2.4315,3500.9,3499.7,3.40736]
[1721627032940,5.28791,3500.9,3499.8,2.8573]
[1721627033166,5.28791,3500.9,3499.9,0.9767361]
[1721627033370,6.85922168,3501.4,3500.6,2.85659]
[1721627033664,6.85922168,3501.4,3500.0,2.48743753]
[1721627033665,6.85922168,3501.8,3500.7,3.40655]
[1721627033876,2.91736562,3501.7,3500.7,0.55]
[1721627034029,2.85584,3501.6,3500.8,0.07888475]
[1721627034222,2.85584,3501.6,3500.0,5.28743]
[1721627034223,2.85584,3501.6,3500.1,3.0]
[1721627034428,2.91736562,3501.7,3500.2,1.42142461]
[1721627034429,2.85592,3501.5,3500.2,1.42142461]
[1721627034628,2.85592,3501.5,3500.2,1.50054129]
[1721627034936,2.85614,3501.3,3500.2,1.50054129]
[1721627035883,2.85601,3501.4,3500.2,4.35750129]
[1721627036185,2.85601,3501.4,3500.3,2.85687]
[1721627036491,2.85601,3501.4,3500.4,1.28574113]
[1721627036990,5.77312562,3501.7,3500.5,2.93568052]
[1721627037178,2.85576,3501.7,3500.6,0.55]
[1721627037375,6.85922168,3501.8,3500.7,0.07890898]
[1721627037592,2.85592,3501.5,3500.8,0.55]
[1721627037748,9.71489168,3501.8,3500.8,0.6288686]
[1721627037948,5.91736562,3501.7,3500.4,3.59253113]
[1721627038147,5.91736562,3501.7,3500.5,0.62898456]
[1721627038388,2.85592,3501.5,3500.5,0.62898456]
[1721627039189,2.856,3501.4,3500.5,0.62898456]
[1721627039355,0.2856,3501.3,3500.5,0.62898456]
[1721627039549,2.856,3501.4,3500.5,0.62898456]
[1721627039992,2.85584,3501.6,3500.5,0.62898456]
[1721627040297,8.77312562,3501.7,3500.5,0.62898456]
[1721627040596,2.85601,3501.4,3500.5,0.62898456]
[1721627040753,2.85587,3501.6,3500.5,1.06471848]
[1721627041906,2.2634,3501.6,3500.5,0.07898456]
[1721627042112,6.005,3501.5,3500.5,0.07898456]
[1721627042383,2.85649,3500.8,3499.7,1.48990793]
[1721627042587,2.85636,3501.0,3499.8,0.57102371]
[1721627042756,2.85636,3501.0,3499.8,3.42826371]
[1721627042960,6.85922168,3501.2,3500.0,2.3694]
[1721627043189,6.85922168,3501.2,3500.2,2.85697]
[1721627043388,6.85922168,3501.2,3500.3,1.12399133]
[1721627043695,9.71538168,3501.2,3500.3,0.076436]
[1721627044067,2.85642,3500.9,3500.0,2.3694]
[1721627044399,2.85642,3500.9,3500.1,0.55]
[1721627044597,2.85642,3500.9,3500.1,0.62651617]
[1721627045592,2.8565,3500.8,3500.1,0.62651617]
[1721627045793,2.8565,3500.8,3500.2,0.29959162]
[1721627045993,2.85637,3501.0,3500.2,0.37607425]
[1721627046810,2.85642,3500.9,3500.2,0.37607425]
[1721627047493,2.85642,3500.9,3500.2,0.07648263]
[1721627047701,6.85922168,3501.2,3500.2,0.07648263]
[1721627047993,2.85642,3500.9,3500.2,0.07648263]
[1721627049870,9.71545168,3501.2,3500.2,0.07648263]
[1721627049871,6.85922168,3501.2,3500.2,0.07648263]
[1721627050057,6.85922168,3501.2,3500.3,3.92921287]
[1721627050404,6.85922168,3501.2,3500.8,2.85648]
[1721627050637,19.26922168,3501.7,3500.9,0.55]
[1721627050773,19.26922168,3501.7,3500.9,0.62621262]
[1721627050973,22.1865873,3501.7,3500.9,0.62621262]
[1721627051207,25.0423373,3501.7,3500.9,0.55]
[1721627051513,25.0423373,3501.7,3500.4,2.3387]
[1721627051514,2.85593,3501.5,3500.4,2.3387]
[1721627051722,2.85593,3501.5,3500.6,0.55]
[1721627051871,0.99933238,3501.4,3500.6,0.55]
[1721627052076,0.99933238,3501.4,3500.5,0.55]
[1721627052395,3.85534238,3501.4,3500.5,0.55]
[1721627052619,3.85534238,3501.4,3500.2,0.55]
[1721627052767,3.85534238,3501.4,3500.6,0.07629897]
[1721627052971,3.85534238,3501.4,3500.2,0.55]
[1721627053224,2.8561,3501.3,3500.7,0.07626542]
[1721627053372,2.85619,3501.2,3500.3,1.22030184]
[1721627053568,2.85619,3501.2,3500.4,0.62638139]
[1721627053823,2.85592,3501.5,3500.4,0.62638139]
[1721627053824,2.85603,3501.4,3500.4,0.62638139]
[1721627054062,2.85611,3501.3,3500.4,0.62638139]
[1721627054206,2.85611,3501.3,3500.4,1.45642855]
[1721627054579,2.85616,3501.2,3500.4,1.45642855]
[1721627055504,2.85603,3501.4,3500.4,1.45642855]
[1721627056776,6.85922168,3501.7,3500.4,1.45642855]
[1721627057182,2.85587,3501.6,3500.4,1.45642855]
[1721627057542,9.71497168,3501.7,3500.6,5.15421]
[1721627057543,6.85922168,3501.7,3500.6,5.15421]
[1721627057680,6.85922168,3501.7,3500.7,0.55]
[1721627057880,6.85922168,3501.7,3500.7,3.48282941]
[1721627058131,6.85922168,3501.7,3500.8,2.85647]
[1721627058297,6.85922168,3501.7,3500.9,1.12803394]
[1721627058620,6.85922168,3501.7,3500.9,1.20421751]
[1721627059617,9.71498168,3501.7,3500.9,1.20421751]
[1721627060381,16.34561952,3502.0,3500.9,0.62618357]
[1721627060587,2.85576,3501.7,3500.3,2.85688]
[1721627060792,2.85602,3501.4,3500.4,1.61954044]
[1721627061109,2.85602,3501.4,3500.4,0.62636716]
[1721627061321,2.85602,3501.4,3500.5,0.57426272]
[1721627061531,2.85602,3501.4,3500.6,0.55]
[1721627061861,2.85602,3501.4,3500.6,0.62629269]
[1721627062437,3.0,3501.9,3500.6,0.62629269]
[1721627062438,5.85559,3501.9,3500.7,2.85655]
[1721627062597,2.85576,3501.7,3500.8,1.24137554]
[1721627062931,2.85585,3501.6,3500.9,0.07619211]
[1721627063100,3.0,3501.9,3501.1,2.357]
[1721627063502,3.0,3501.9,3501.0,0.55]
[1721627063698,3.0,3501.9,3501.2,0.07608529]
[1721627063928,3.0,3501.9,3500.8,0.55]
[1721627063929,5.85561,3501.9,3500.8,0.55]
[1721627064129,5.85561,3501.9,3501.3,0.07604608]
[1721627064428,5.85561,3501.9,3500.8,2.85641]
[1721627064429,3.0,3501.9,3500.8,2.85641]
[1721627064593,3.0,3501.9,3500.9,0.55]
[1721627064792,3.0,3501.9,3501.0,0.07616201]
[1721627064993,3.0,3501.9,3501.1,0.55]
[1721627065291,2.85578,3501.7,3501.2,0.07608472]
[1721627065530,2.85578,3501.7,3500.6,5.2136]
[1721627065747,2.85578,3501.7,3501.3,0.07604608]
[1721627065925,2.20569995,3501.7,3500.7,3.40649]
[1721627066118,2.8559,3501.6,3500.7,0.55]
[1721627066349,2.85593,3501.5,3500.8,0.0762393]
[1721627066648,2.85567,3501.8,3500.8,0.0762393]
[1721627066821,3.0,3501.9,3500.8,0.0762393]
[1721627066822,2.85576,3501.7,3500.8,0.0762393]
[1721627068235,5.85559,3501.9,3500.8,0.0762393]
[1721627068533,5.85559,3501.9,3500.9,0.90111839]
[1721627068534,2.85568,3501.8,3500.9,0.90111839]
[1721627068846,2.85568,3501.8,3501.0,0.07616201]
[1721627070245,3.0,3501.9,3501.0,0.07616201]
[1721627070246,2.8559,3501.6,3501.0,0.07616201]
[1721627070412,2.856,3501.4,3501.0,0.07616201]
[1721627070751,2.856,3501.4,3500.2,6.2471444]
[1721627070752,2.85618,3501.2,3500.2,3.09443838]
[1721627070939,2.85625,3501.1,3500.3,1.54320622]
[1721627071138,2.85625,3501.1,3500.3,0.62641038]
[1721627072314,2.85644,3500.9,3500.3,0.07641038]
[1721627072512,2.85666,3500.6,3500.3,0.07641038]
[1721627072713,2.85666,3500.6,3499.7,2.87763838]
[1721627072915,2.85673,3500.5,3500.4,0.07639903]
[1721627073164,2.85673,3500.5,3499.7,2.2809]
[1721627073534,2.85673,3500.5,3499.8,0.07663102]
[1721627073847,2.85673,3500.5,3499.8,0.31238412]
[1721627074034,10.15486568,3500.9,3499.8,0.07663102]
[1721627074229,10.15486568,3500.9,3499.3,0.59673838]
[1721627074230,2.85708,3500.1,3499.2,2.3976]
[1721627074635,2.85708,3500.1,3498.8,2.99433838]
[1721627074636,2.85725,3499.9,3498.8,2.99433838]
[1721627074870,2.85725,3499.9,3499.3,0.07686881]
[1721627075054,2.85725,3499.9,3498.8,2.3976]
[1721627075252,2.85725,3499.9,3499.4,0.07683013]
[1721627075426,2.8574,3499.7,3498.9,0.67449628]
[1721627075844,2.8574,3499.7,3499.0,0.07698487]
[1721627077057,2.8574,3499.7,3498.8,2.3976]
[1721627077370,2.85723,3499.9,3499.1,0.07694618]
[1721627077660,2.85723,3499.9,3498.8,2.3976]
[1721627077661,3.729659,3499.9,3499.2,0.0769075]
[1721627077859,3.729659,3499.9,3498.8,2.3976]
[1721627078037,2.85723,3499.9,3499.3,0.07686881]
[1721627078241,2.85723,3499.9,3498.9,0.55]
[1721627078445,2.85706,3500.1,3499.4,0.07683013]
[1721627078665,2.85706,3500.1,3498.9,3.46516777]
[1721627078831,2.85706,3500.1,3499.5,0.07679145]
[1721627079032,2.85706,3500.1,3499.0,3.44422678]
[1721627079275,2.85706,3500.1,3499.6,0.07675278]
[1721627079567,2.85714,3500.0,3498.9,0.55]
[1721627079867,2.85714,3500.0,3499.0,0.07698487]
[1721627080030,2.85714,3500.0,3499.1,0.55]
[1721627080228,2.85702,3500.2,3499.1,0.62694618]
[1721627080428,2.2552,3500.3,3499.1,3.48478618]
[1721627080871,5.11215,3500.3,3499.1,3.48478618]
[1721627081033,5.85698,3500.2,3499.1,3.48478618]
[1721627081236,5.85698,3500.2,3499.2,0.69310237]
[1721627081564,5.85698,3500.2,3499.2,0.7700446]
[1721627082152,2.85706,3500.1,3499.2,0.7700446]
[1721627082776,3.0,3500.2,3499.2,0.7700446]
[1721627084390,3.0,3500.2,3499.3,0.05715282]
[1721627084574,6.85922168,3500.5,3499.4,3.40763]
[1721627084782,6.85922168,3500.5,3499.5,0.58661722]
[1721627084968,6.85922168,3500.5,3499.6,0.55]
[1721627085391,6.85922168,3500.5,3499.7,0.07679437]
[1721627085590,6.85922168,3500.5,3499.8,0.55]
[1721627085969,6.85922168,3500.5,3499.9,0.07671703]
[1721627086288,2.85665,3500.6,3499.9,0.07671703]
[1721627086487,3.0,3500.5,3499.9,0.07671703]
[1721627088055,6.85922168,3500.9,3500.0,0.55]
[1721627088262,3.0,3500.8,3500.1,0.3483917]
[1721627088556,6.85922168,3500.9,3500.2,0.55]
[1721627088754,6.85922168,3500.9,3500.3,2.85687]
[1721627088961,6.85922168,3501.3,3500.4,0.55]
[1721627089160,2.85594,3501.5,3500.4,0.62649809]
[1721627089489,2.85594,3501.5,3500.4,0.55]
[1721627089490,1.50639217,3501.4,3500.4,0.55]
[1721627089674,1.50639217,3501.4,3500.5,0.07645943]
[1721627089999,4.50639217,3501.4,3500.5,0.07645943]
[1721627090380,4.50639217,3501.4,3500.4,0.55]
[1721627090576,7.36239217,3501.4,3500.4,0.55]
[1721627090778,7.36239217,3501.4,3500.3,0.55]
[1721627090779,0.73623922,3501.3,3500.3,0.55]
[1721627090976,0.73623922,3501.3,3500.5,0.07645943]
[1721627091176,2.85633,3501.0,3500.4,0.07649809]
[1721627091376,2.8564,3500.9,3499.8,2.8573]
[1721627091675,2.8564,3500.9,3499.9,0.6266914]
[1721627092028,2.85627,3501.1,3499.9,3.4838514]
[1721627092825,2.85608,3501.3,3499.9,0.6266914]
[1721627093027,5.85618,3501.2,3500.0,3.14880914]
[1721627093191,5.85616,3501.2,3500.1,0.55]
[1721627093396,5.85616,3501.2,3500.1,0.62661407]
[1721627093397,2.85642,3500.9,3500.1,0.62661407]
[1721627093738,2.85632,3501.0,3500.1,0.62661407]
[1721627094332,2.85658,3500.7,3500.1,0.62661407]
[1721627094633,2.85632,3501.0,3500.1,0.62661407]
[1721627094831,3.441952,3501.0,3500.1,0.62661407]
[1721627095006,2.85646,3500.9,3500.1,0.62661407]
[1721627095212,3.441952,3501.0,3500.1,0.62661407]
[1721627095407,2.85649,3500.8,3500.1,0.62661407]
[1721627095809,2.85641,3500.9,3500.1,0.62661407]
[1721627097072,2.85663,3500.7,3500.1,0.62661407]
[1721627097212,0.9298292,3500.9,3500.1,0.07661407]
[1721627097539,2.85691,3500.3,3499.2,2.3168]
[1721627097856,2.85691,3500.3,3499.3,0.07687051]
[1721627097857,3.428267,3500.3,3499.3,0.07687051]
[1721627098154,2.85691,3500.3,3499.2,2.3168]
[1721627098664,2.85691,3500.3,3499.3,0.07687051]
[1721627098834,2.85691,3500.3,3499.4,0.55]
[1721627099217,2.85691,3500.3,3499.3,0.55]
[1721627099458,2.85691,3500.3,3499.4,0.572467]
[1721627099618,2.85691,3500.3,3499.5,0.55]
[1721627099821,2.85701,3500.2,3499.5,0.55]
[1721627100654,2.8569,3500.3,3499.2,2.3168]
[1721627100856,2.85722,3499.9,3499.6,0.07675448]
[1721627101066,2.85722,3499.9,3498.7,2.4372]
[1721627101067,0.285722,3499.8,3498.7,2.4372]
[1721627101275,2.85722,3499.9,3498.7,2.4372]
[1721627101276,2.85738,3499.7,3498.7,2.4372]
[1721627101558,2.85764,3499.4,3498.7,2.4372]
[1721627102135,2.85747,3499.6,3498.7,2.4372]
[1721627102565,6.85922168,3499.8,3498.7,5.29532]
[1721627102721,3.0,3499.7,3498.7,5.29532]
[1721627102921,3.0,3499.7,3498.8,0.53524769]
[1721627104078,3.0,3499.7,3498.9,0.55]
[1721627104430,3.0,3499.7,3498.8,0.55]
[1721627105466,2.85748,3499.6,3498.8,0.55]
[1721627105772,2.85748,3499.6,3498.6,0.55]
[1721627105974,2.85748,3499.6,3498.6,0.98962708]
[1721627106638,2.85757,3499.5,3498.6,0.98962708]
[1721627106956,2.85757,3499.5,3498.6,0.55]
[1721627107166,2.85757,3499.5,3498.4,3.40843]
[1721627107747,2.85771,3499.3,3498.4,0.55]
[1721627108129,2.85797,3499.0,3498.3,0.35163926]
[1721627108447,2.85784,3499.2,3498.3,0.35163926]
[1721627108651,2.85767,3499.4,3498.3,0.35163926]
[1721627108974,3.0,3499.7,3498.4,2.299]
[1721627109175,3.0,3499.7,3498.5,2.85835]
[1721627109329,3.0,3499.7,3498.6,0.05715764]
[1721627109525,3.0,3499.7,3498.8,2.85811]
[1721627109854,3.0,3499.7,3498.6,2.85828]
[1721627110042,3.0,3499.7,3498.7,4.209742]
[1721627110248,5.8574,3499.7,3498.7,1.351572]
[1721627110446,5.8574,3499.7,3498.7,4.209752]
[1721627110447,3.0,3499.7,3498.7,4.209752]
[1721627110848,3.0,3499.7,3498.8,2.85811]
[1721627111036,3.0,3499.7,3498.9,0.55]
[1721627111231,3.0,3499.7,3498.9,1.3175108]
[1721627111462,3.0,3499.7,3498.9,0.55]
[1721627111674,5.85742,3499.7,3498.8,0.55]
[1721627111858,2.3122,3499.6,3498.5,3.40832]
[1721627112094,5.16967,3499.6,3498.5,3.40832]
[1721627112266,5.16967,3499.6,3498.5,0.55]
[1721627112267,2.85756,3499.5,3498.5,0.55]
[1721627112436,4.33803663,3499.5,3498.4,0.55]
[1721627112634,4.33803663,3499.5,3498.4,3.40842]
[1721627112837,4.33803663,3499.5,3498.5,2.85835]
[1721627112838,1.48047663,3499.5,3498.5,2.85835]
[1721627113134,1.48047663,3499.5,3498.6,2.85826]
[1721627113533,3.0,3499.7,3498.5,2.3874]
[1721627113735,6.85922168,3499.8,3499.3,2.8577]
[1721627114013,6.85922168,3499.8,3499.4,2.3874]
[1721627114143,6.85922168,3500.3,3499.4,2.3874]
[1721627114476,2.85698,3500.2,3499.4,2.3874]
[1721627114839,2.85698,3500.2,3499.5,0.55]
[1721627115843,2.85707,3500.1,3499.5,0.55]
[1721627116175,2.85731,3499.8,3499.6,0.07168793]
[1721627116351,2.85738,3499.7,3499.6,0.07168793]
[1721627116554,2.85738,3499.7,3498.6,2.3874]
[1721627116878,2.85738,3499.7,3498.7,0.07203325]
[1721627117470,5.2968,3500.0,3498.7,0.07203325]
[1721627117650,2.2968,3500.0,3498.8,0.74048511]
[1721627117846,2.85731,3499.8,3498.8,0.74048511]
[1721627118047,2.85731,3499.8,3498.9,0.62195587]
[1721627119599,2.85742,3499.7,3498.9,0.62195587]